[Event "FRA-ch Youth U12 2018"]
[Site "Agen"]
[Date "2018.04.19"]
[Round "6"]
[White "Razafindratsima, Timothe"]
[Black "Maurizzi, Marc Andria"]
[Result "0-1"]
[ECO "C11"]
[WhiteElo "2146"]
[BlackElo "2119"]
[Annotator "NA"]
[PlyCount "84"]
[EventDate "2018.??.??"]
[EventType "swiss"]
[EventCountry "FRA"]
[SourceTitle "playchess.com"]
[Source "ChessBase"]
[SourceQuality "1"]
[TimeControl "5400+30"]

1. e4 {[%emt 0:00:00]} e6 {[%emt 0:00:11]} 2. d4 {[%emt 0:00:00]} d5 {[%emt 0:00:12]} 3. Nc3 {[%emt 0:00:00]} Nf6 {[%emt 0:00:05]} 4. e5 {[%emt 0:00:00]} Nfd7 {[%emt 0:00:05]} 5. f4 {[%emt 0:00:07]} c5 {[%emt 0:00:54]} 6. Nce2 {[%emt 0:00:10]} Nc6 {[%emt 0:02:45]} 7. Nf3 {[%emt 0:00:09]} Be7 {[%emt 0:10:02]} 8. c3 {[%emt 0:03:55]} b6 {[%emt 0:03:33] C11: French: Classical System: 4 e5 and 4 Bg5 dxe4} (8... O-O 9. Be3 Qb6 10. Qd2 f6 11. g3 Kh8 12. Bg2 cxd4 13. cxd4 Bb4 14. Nc3 Qa6 15. Kf2 fxe5 16. fxe5 Ndxe5 17. dxe5 Nxe5 {½-½ (53) Fedoseev,V (2667)-Morozevich,A (2676) Moscow 2016}) 9. Be3 {[%emt 0:12:43]} Ba6 {[%emt 0:00:30]} 10. Ng3 {[%emt 0:00:30]} Bxf1 {[%emt 0:00:30]} 11. Rxf1 {[%emt 0:00:30]} g6 $146 {[%emt 0:00:30]} 12. Kf2 {[%emt 0:00:30]} Qc7 {[%emt 0:00:30]} 13. Kg1 {[%emt 0:00:30]} O-O-O {[%emt 0:00:30]} 14. a3 {[%emt 0:00:30]} c4 {[%emt 0:00:30]} 15. Nd2 {[%emt 0:00:30]} Na5 {[%emt 0:00:30]} 16. a4 {[%emt 0:00:30]} Nb8 {[%emt 0:00:30]} 17. Bf2 {[%emt 0:00:30]} Nbc6 {[%emt 0:00:30]} 18. Qc2 {[%emt 0:00:30]} h5 {[%emt 0:00:30]} 19. Ne2 {[%emt 0:00:30]} Kb8 {[%emt 0:00:30]} 20. Be3 {[%emt 0:00:30]} Ka8 {[%emt 0:00:30]} 21. Nc1 {[%emt 0:00:30]} Rhe8 {[%emt 0:00:30]} 22. Nf3 {[%emt 0:00:30]} Rh8 {[%emt 0:00:30]} 23. Ng5 {[%emt 0:00:30]} Bxg5 {[%emt 0:00:30]} 24. fxg5 {[%emt 0:00:30]} Rhf8 {[%emt 0:00:30]} 25. Ne2 {[%emt 0:00:30]} Ne7 {[%emt 0:00:30]} 26. h3 {[%emt 0:00:30]} Nf5 $15 {[%emt 0:00:30]} 27. Bf2 {[%emt 0:00:30]} Nb3 {[%emt 0:00:30]} 28. Ra3 {[%emt 0:00:30]} Qd7 {[%emt 0:00:30]} 29. Nc1 {[%emt 0:00:30]} Nxc1 {[%emt 0:00:30]} 30. Rxc1 {[%emt 0:00:30]} h4 {[%emt 0:00:30]} 31. Rca1 {[%emt 0:00:30]} a6 {[%emt 0:00:30]} 32. b3 {[%emt 0:00:30]} Rc8 {[%emt 0:00:30]} 33. Qb2 {[%emt 0:00:30]} Ka7 {[%emt 0:00:30]} 34. Rb1 {[%emt 0:00:30]} Qb7 {[%emt 0:00:30]} 35. bxc4 {[%emt 0:00:30]} Rxc4 {[%emt 0:00:30]} 36. Rb3 {[%emt 0:00:30]} Rb8 {[%emt 0:00:30]} 37. Rb4 {[%emt 0:00:30]} Qc6 {[%emt 0:00:30]} 38. Rc1 {[%emt 0:00:30]} a5 {[%emt 0:00:30]} 39. Rxc4 {[%emt 0:00:30]} Qxc4 {[%emt 0:00:30]} 40. Qa3 {[%emt 0:00:30]} Rc8 {[%emt 0:00:30]} 41. Rc2 {[%emt 0:00:30]} Kb7 {[%emt 0:00:30]} 42. Rc1 {[%emt 0:00:30]} Qe2 {[%emt 0:00:30]} 0-1

[Event "FRA-ch Youth U12 2018"]
[Site "Agen"]
[Date "2018.04.19"]
[Round "6"]
[White "Droin, Augustin"]
[Black "Lamaze, Simon"]
[Result "1-0"]
[ECO "B01"]
[WhiteElo "1975"]
[BlackElo "1850"]
[Annotator "NA"]
[PlyCount "89"]
[EventDate "2018.??.??"]
[EventType "swiss"]
[EventCountry "FRA"]
[SourceTitle "playchess.com"]
[Source "ChessBase"]
[SourceQuality "1"]
[TimeControl "5400+30"]

1. e4 {[%emt 0:00:00]} d5 {[%emt 0:00:18]} 2. exd5 {[%emt 0:00:00]} Nf6 {[%emt 0:00:05]} 3. d4 {[%emt 0:01:38]} Bg4 {[%emt 0:00:30]} 4. Be2 {[%emt 0:00:30]} Bxe2 5. Nxe2 {[%emt 0:00:08]} Qxd5 {[%emt 0:01:10]} 6. Nf4 {[%emt 0:00:17]} Qf5 {[%emt 0:02:05]} 7. O-O {[%emt 0:04:46]} Nc6 {[%emt 0:03:01]} 8. c3 {[%emt 0:01:28]} O-O-O {[%emt 0:01:23]} 9. Qd3 {[%emt 0:01:06]} Qxd3 {[%emt 0:00:50]} 10. Nxd3 {[%emt 0:00:04]} e5 {[%emt 0:05:18]} 11. Nxe5 {[%emt 0:03:39]} Nxe5 {[%emt 0:00:18]} 12. dxe5 {[%emt 0:00:05]} Ng4 {[%emt 0:00:18]} 13. Bf4 {[%emt 0:01:37]} Re8 {[%emt 0:01:33]} 14. Nd2 {[%emt 0:05:13]} Nxe5 {[%emt 0:00:45]} 15. Rfe1 {[%emt 0:00:37]} Bd6 {[%emt 0:01:32]} 16. Bxe5 {[%emt 0:08:15]} Bxe5 {[%emt 0:03:22]} 17. Nc4 {[%emt 0:01:03]} Bf6 {[%emt 0:03:25]} 18. a4 {[%emt 0:02:59]} Rxe1+ {[%emt 0:05:50]} 19. Rxe1 {[%emt 0:00:06]} Rd8 {[%emt 0:00:22]} 20. f4 {[%emt 0:02:20]} c6 {[%emt 0:05:16]} 21. a5 {[%emt 0:08:26]} Rd5 {[%emt 0:03:03]} 22. Kf2 {[%emt 0:00:24]} Kd7 {[%emt 0:02:19]} 23. Ke3 {[%emt 0:14:06]} h5 {[%emt 0:15:02]} 24. a6 {[%emt 0:00:43]} Kc7 {[%emt 0:11:35]} 25. axb7 {[%emt 0:00:21]} Kxb7 {[%emt 0:00:19]} 26. Kf3 {[%emt 0:00:23]} Rd3+ {[%emt 0:04:54]} 27. Re3 {[%emt 0:05:31]} Rd1 {[%emt 0:10:59]} 28. Re8 {[%emt 0:03:00]} Rf1+ {[%emt 0:02:08]} 29. Ke4 {[%emt 0:05:58]} Rf2 {[%emt 0:03:03]} 30. Rf8 {[%emt 0:02:14]} Rxg2 {[%emt 0:01:07]} 31. Rxf7+ {[%emt 0:00:06]} Ka6 {[%emt 0:01:22]} 32. h3 {[%emt 0:03:17]} Rh2 {[%emt 0:02:47]} 33. Ne5 {[%emt 0:00:09]} Rxb2 {[%emt 0:01:09]} 34. Nxc6 {[%emt 0:00:17]} Bxc3 {[%emt 0:01:18]} 35. Rxa7+ {[%emt 0:01:39]} Kb6 {[%emt 0:00:37]} 36. Ra3 {[%emt 0:00:03]} Bf6 {[%emt 0:01:24]} 37. Ne5 {[%emt 0:00:07]} Kc7 {[%emt 0:02:42]} 38. Kf5 {[%emt 0:00:33]} Rf2 {[%emt 0:01:01]} 39. Re3 {[%emt 0:03:13]} Kd6 {[%emt 0:02:09]} 40. Nf7+ {[%emt 0:04:30]} Kd7 {[%emt 0:00:56]} 41. Ng5 {[%emt 0:00:08]} Be7 {[%emt 0:02:03]} 42. Rg3 {[%emt 0:02:23]} h4 {[%emt 0:01:17]} 43. Rg4 {[%emt 0:00:14]} Ke8 {[%emt 0:00:14]} 44. Kg6 {[%emt 0:01:08]} Bxg5 {[%emt 0:00:41]} 45. fxg5 {[%emt 0:00:09]} 1-0

[Event "FRA-ch Youth U12 2018"]
[Site "Agen"]
[Date "2018.04.19"]
[Round "6"]
[White "Makkar, Rajat"]
[Black "Bat, Bilguun"]
[Result "1-0"]
[ECO "A40"]
[WhiteElo "1813"]
[BlackElo "1951"]
[Annotator "NA"]
[PlyCount "77"]
[EventDate "2018.??.??"]
[EventType "swiss"]
[EventCountry "FRA"]
[SourceTitle "playchess.com"]
[Source "ChessBase"]
[SourceQuality "1"]
[TimeControl "5400+30"]

1. d4 {[%emt 0:00:00]} Nf6 {[%emt 0:00:11]} 2. c4 {[%emt 0:00:00]} e6 {[%emt 0:00:05]} 3. g3 {[%emt 0:00:00]} d5 {[%emt 0:00:35]} 4. Nf3 {[%emt 0:00:14]} c6 {[%emt 0:00:56]} 5. Qc2 {[%emt 0:01:55]} Bd6 {[%emt 0:01:11]} 6. Bg2 {[%emt 0:01:06]} b6 {[%emt 0:00:26]} 7. O-O {[%emt 0:03:20]} Nbd7 {[%emt 0:01:17]} 8. cxd5 {[%emt 0:04:50]} cxd5 {[%emt 0:03:55]} 9. a4 {[%emt 0:01:41]} Ba6 {[%emt 0:06:34]} 10. Na3 {[%emt 0:07:38]} O-O {[%emt 0:08:20]} 11. Nb5 {[%emt 0:05:43]} Bxb5 {[%emt 0:01:41]} 12. axb5 {[%emt 0:00:03]} Qe7 {[%emt 0:03:40]} 13. b3 {[%emt 0:21:49]} Rfc8 {[%emt 0:16:28]} 14. Qd3 {[%emt 0:04:28]} Rc7 {[%emt 0:03:19]} 15. Bb2 {[%emt 0:08:29]} Ne8 {[%emt 0:15:10]} 16. Ne5 {[%emt 0:03:54]} Bxe5 {[%emt 0:02:43]} 17. dxe5 {[%emt 0:00:44]} Nc5 {[%emt 0:01:09]} 18. Qe3 {[%emt 0:05:06]} Qd7 {[%emt 0:00:49]} 19. b4 {[%emt 0:00:28]} Nb7 {[%emt 0:00:28]} 20. Bd4 {[%emt 0:01:04]} Nd8 {[%emt 0:06:12]} 21. Bxb6 {[%emt 0:03:12]} Rb7 {[%emt 0:00:31]} 22. Bc5 {[%emt 0:03:53]} Qxb5 {[%emt 0:00:32]} 23. Ra5 {[%emt 0:00:34]} Qd7 {[%emt 0:00:55]} 24. Rb1 {[%emt 0:01:35]} Nc6 {[%emt 0:00:52]} 25. Ra2 {[%emt 0:00:41]} Nc7 {[%emt 0:00:28]} 26. f4 {[%emt 0:03:53]} a5 {[%emt 0:00:39]} 27. Rba1 {[%emt 0:00:49]} Nxb4 {[%emt 0:01:51]} 28. Rxa5 {[%emt 0:01:27]} Rxa5 {[%emt 0:01:36]} 29. Rxa5 {[%emt 0:00:09]} Nba6 {[%emt 0:01:07]} 30. Qa3 {[%emt 0:02:10]} Qc6 {[%emt 0:00:51]} 31. h3 {[%emt 0:02:06]} Rb5 {[%emt 0:00:17]} 32. Be3 {[%emt 0:01:33]} g6 {[%emt 0:01:43]} 33. Qd6 {[%emt 0:01:31]} Qa8 {[%emt 0:01:23]} 34. Bb6 {[%emt 0:04:28]} Rxa5 {[%emt 0:01:33]} 35. Bxa5 {[%emt 0:00:03]} Nb5 {[%emt 0:00:26]} 36. Qd7 {[%emt 0:01:11]} Na3 {[%emt 0:01:56]} 37. Bd8 {[%emt 0:00:21]} Kg7 {[%emt 0:03:18]} 38. Qe8 {[%emt 0:01:03]} Qa7+ {[%emt 0:04:19]} 39. Kh2 {[%emt 0:01:08] Kg8} 1-0

[Event "FRA-ch Youth U12 2018"]
[Site "Agen"]
[Date "2018.04.19"]
[Round "6"]
[White "Strasser, Rouben"]
[Black "Mekhane, Adam"]
[Result "0-1"]
[ECO "C77"]
[WhiteElo "1681"]
[BlackElo "1907"]
[Annotator "NA"]
[PlyCount "52"]
[EventDate "2018.??.??"]
[EventType "swiss"]
[EventCountry "FRA"]
[SourceTitle "playchess.com"]
[Source "ChessBase"]
[SourceQuality "1"]
[TimeControl "5400+30"]

1. e4 {[%emt 0:00:00]} e5 {[%emt 0:00:03]} 2. Nf3 {[%emt 0:00:00]} Nc6 {[%emt 0:00:01]} 3. Bb5 {[%emt 0:00:00]} a6 {[%emt 0:00:08]} 4. Ba4 {[%emt 0:00:00]} Nf6 {[%emt 0:00:02]} 5. d3 {[%emt 0:00:08]} d6 {[%emt 0:01:06]} 6. c3 {[%emt 0:00:17]} b5 {[%emt 0:00:49]} 7. Bc2 {[%emt 0:00:11]} Be7 {[%emt 0:00:12]} 8. O-O {[%emt 0:00:44]} O-O {[%emt 0:00:09]} 9. a4 {[%emt 0:00:44]} Bb7 {[%emt 0:00:29]} 10. Re1 {[%emt 0:01:11]} Re8 {[%emt 0:02:24]} 11. Nbd2 {[%emt 0:02:29]} Bf8 {[%emt 0:03:24]} 12. Nf1 {[%emt 0:01:03]} d5 {[%emt 0:06:17]} 13. Ng3 {[%emt 0:03:28]} g6 {[%emt 0:03:45]} 14. Bg5 {[%emt 0:08:50]} Bg7 {[%emt 0:08:42]} 15. Qd2 {[%emt 0:14:12]} dxe4 {[%emt 0:08:02]} 16. Nxe4 {[%emt 0:01:14]} Nxe4 {[%emt 0:02:06]} 17. dxe4 {[%emt 0:00:37]} Qxd2 {[%emt 0:01:38]} 18. Bxd2 {[%emt 0:01:00]} Rad8 {[%emt 0:13:34]} 19. axb5 {[%emt 0:01:05]} axb5 {[%emt 0:00:21]} 20. Be3 {[%emt 0:00:47]} Rd7 {[%emt 0:06:28]} 21. Nd2 {[%emt 0:06:45]} Nd8 {[%emt 0:09:38]} 22. Nb3 {[%emt 0:00:37]} Ne6 {[%emt 0:01:56]} 23. Ra7 {[%emt 0:00:40]} Bc6 {[%emt 0:02:52]} 24. Rea1 {[%emt 0:03:09]} Red8 {[%emt 0:04:26]} 25. Na5 {[%emt 0:02:26]} Bxe4 {[%emt 0:00:47]} 26. Nb7 {[%emt 0:01:29]} Bxc2 {[%emt 0:04:02]} 0-1

[Event "FRA-ch Youth U12 2018"]
[Site "Agen"]
[Date "2018.04.19"]
[Round "6"]
[White "Berezovsky, Fiorina"]
[Black "Milojevic-Daim, Lola-Shaina"]
[Result "1/2-1/2"]
[ECO "B32"]
[WhiteElo "1678"]
[BlackElo "1316"]
[Annotator "NA"]
[PlyCount "78"]
[EventDate "2018.??.??"]
[EventType "swiss"]
[EventCountry "FRA"]
[SourceTitle "playchess.com"]
[Source "ChessBase"]
[SourceQuality "1"]
[TimeControl "5400+30"]

1. e4 {[%emt 0:00:00]} c5 {[%emt 0:00:13]} 2. Nf3 {[%emt 0:00:00]} Nc6 {[%emt 0:00:21]} 3. d4 {[%emt 0:00:22]} cxd4 {[%emt 0:00:22]} 4. Nxd4 {[%emt 0:00:39]} e5 {[%emt 0:00:33]} 5. Nb5 {[%emt 0:04:38]} a6 {[%emt 0:00:37]} 6. Nd6+ {[%emt 0:00:57]} Bxd6 {[%emt 0:00:25]} 7. Qxd6 {[%emt 0:00:50]} Qf6 {[%emt 0:00:42]} 8. Qd1 {[%emt 0:06:04]} Qg6 {[%emt 0:01:44]} 9. Nc3 {[%emt 0:03:19]} d5 {[%emt 0:02:09]} 10. f3 {[%emt 0:11:53]} dxe4 {[%emt 0:05:20]} 11. Nxe4 {[%emt 0:03:20]} f5 {[%emt 0:18:03]} 12. Nd6+ {[%emt 0:02:21]} Ke7 {[%emt 0:00:32]} 13. Nxc8+ {[%emt 0:01:46]} Rxc8 {[%emt 0:00:21]} 14. Be3 {[%emt 0:04:35]} Nb4 {[%emt 0:10:13]} 15. c3 {[%emt 0:04:09]} f4 {[%emt 0:02:53]} 16. cxb4 {[%emt 0:03:18]} fxe3 {[%emt 0:00:15]} 17. Rc1 {[%emt 0:02:54]} Nh6 {[%emt 0:06:54]} 18. Rc5 {[%emt 0:08:06]} Rxc5 {[%emt 0:03:14]} 19. bxc5 {[%emt 0:02:56]} Rd8 {[%emt 0:00:14]} 20. Qc1 {[%emt 0:03:31]} Qg5 {[%emt 0:05:26]} 21. Qc3 {[%emt 0:03:55]} Qf5 {[%emt 0:04:58]} 22. Qc1 {[%emt 0:03:26]} Ng4 {[%emt 0:01:15]} 23. Be2 {[%emt 0:05:56]} Nf2 {[%emt 0:02:28]} 24. Rf1 {[%emt 0:01:47]} Rd2 {[%emt 0:02:19]} 25. Rxf2 {[%emt 0:04:35]} exf2+ {[%emt 0:00:59]} 26. Kxd2 {[%emt 0:00:15]} Qf4+ {[%emt 0:00:19]} 27. Kc2 {[%emt 0:02:19]} Qxh2 {[%emt 0:01:28]} 28. Qg5+ {[%emt 0:01:04]} Ke6 {[%emt 0:00:45]} 29. Bc4+ {[%emt 0:00:39]} Kd7 {[%emt 0:00:11]} 30. Qxg7+ {[%emt 0:00:39]} Kc6 {[%emt 0:00:12]} 31. b4 {[%emt 0:03:22]} Qf4 {[%emt 0:03:25]} 32. Bd3 {[%emt 0:01:43]} Qxb4 {[%emt 0:05:04]} 33. Qxe5 {[%emt 0:01:30]} Qa4+ {[%emt 0:00:30]} 34. Kc1 {[%emt 0:01:54]} Qa3+ {[%emt 0:00:41]} 35. Qb2 {[%emt 0:01:41]} Qxd3 {[%emt 0:02:08]} 36. Qxf2 {[%emt 0:00:38]} Qc4+ {[%emt 0:00:25]} 37. Kb2 {[%emt 0:00:38]} Qb4+ {[%emt 0:00:27]} 38. Kc2 {[%emt 0:00:16]} Qc4+ {[%emt 0:00:22]} 39. Kb2 {[%emt 0:01:11]} Qb4+ {[%emt 0:00:10]} 1/2-1/2

[Event "FRA-ch Youth U12 2018"]
[Site "Agen"]
[Date "2018.04.19"]
[Round "6"]
[White "Bousmaha, Leila"]
[Black "Natchkebia, Valeria"]
[Result "0-1"]
[ECO "C47"]
[WhiteElo "1538"]
[BlackElo "1300"]
[Annotator "NA"]
[PlyCount "58"]
[EventDate "2018.??.??"]
[EventType "swiss"]
[EventCountry "FRA"]
[SourceTitle "playchess.com"]
[Source "ChessBase"]
[SourceQuality "1"]
[TimeControl "5400+30"]

1. e4 {[%emt 0:00:16]} e5 {[%emt 0:00:06]} 2. Nf3 {[%emt 0:00:05]} Nc6 {[%emt 0:00:20]} 3. Nc3 {[%emt 0:01:10]} Nf6 {[%emt 0:00:18]} 4. d4 {[%emt 0:00:27]} exd4 {[%emt 0:02:24]} 5. Nxd4 Nxe4 {[%emt 0:01:10]} 6. Nxe4 {[%emt 0:02:01]} Qe7 {[%emt 0:00:54]} 7. f3 {[%emt 0:04:21]} d5 {[%emt 0:01:47]} 8. Nxc6 {[%emt 0:02:09]} bxc6 {[%emt 0:00:21]} 9. Bd3 {[%emt 0:01:03]} dxe4 {[%emt 0:01:19]} 10. fxe4 {[%emt 0:00:56]} Qe5 {[%emt 0:09:41]} 11. O-O {[%emt 0:03:46]} Bc5+ {[%emt 0:00:39]} 12. Kh1 {[%emt 0:00:30]} O-O {[%emt 0:00:10]} 13. c3 {[%emt 0:06:02]} Bd7 {[%emt 0:02:57]} 14. Bf4 {[%emt 0:01:02]} Qe7 {[%emt 0:05:55]} 15. Bxc7 {[%emt 0:04:40]} Rac8 {[%emt 0:03:33]} 16. Bf4 {[%emt 0:00:55]} Qh4 {[%emt 0:05:04]} 17. Qd2 {[%emt 0:03:10]} Rfe8 {[%emt 0:04:44]} 18. Bg3 {[%emt 0:01:34]} Qg4 {[%emt 0:03:33]} 19. Qc2 {[%emt 0:05:41]} Re6 {[%emt 0:05:45]} 20. Rf3 {[%emt 0:07:39]} Rh6 {[%emt 0:01:48]} 21. Be2 {[%emt 0:04:46]} Re8 {[%emt 0:13:34]} 22. e5 {[%emt 0:12:08]} Ree6 {[%emt 0:05:51]} 23. Bf4 {[%emt 0:06:20]} Reg6 {[%emt 0:03:05]} 24. Bd3 {[%emt 0:01:11]} f5 {[%emt 0:06:34]} 25. Bxh6 {[%emt 0:01:53]} Rxh6 {[%emt 0:00:04]} 26. Rh3 {[%emt 0:03:54]} Rxh3 {[%emt 0:01:02]} 27. gxh3 {[%emt 0:00:18]} Qf3+ {[%emt 0:00:09]} 28. Qg2 {[%emt 0:00:09]} Qxd3 {[%emt 0:00:23]} 29. Re1 {[%emt 0:02:36]} Be6 {[%emt 0:00:37]} 0-1

[Event "FRA-ch Youth U12 2018"]
[Site "Agen"]
[Date "2018.04.19"]
[Round "6"]
[White "Pentcheff, Laura"]
[Black "Grondin, Marine"]
[Result "1-0"]
[ECO "E06"]
[WhiteElo "1512"]
[BlackElo "1267"]
[Annotator "NA"]
[PlyCount "99"]
[EventDate "2018.??.??"]
[EventType "swiss"]
[EventCountry "FRA"]
[SourceTitle "playchess.com"]
[Source "ChessBase"]
[SourceQuality "1"]
[TimeControl "5400+30"]

1. d4 {[%emt 0:00:00]} Nf6 {[%emt 0:00:19]} 2. c4 {[%emt 0:00:00]} d5 {[%emt 0:00:46]} 3. Nf3 {[%emt 0:00:00]} e6 {[%emt 0:01:32]} 4. g3 {[%emt 0:00:04]} Be7 {[%emt 0:01:34]} 5. Bg2 {[%emt 0:00:09]} c6 {[%emt 0:01:43]} 6. O-O {[%emt 0:00:12]} O-O {[%emt 0:00:59]} 7. Nc3 {[%emt 0:00:16]} Nbd7 {[%emt 0:01:32]} 8. Qc2 {[%emt 0:05:27]} b6 {[%emt 0:04:15]} 9. cxd5 {[%emt 0:13:06]} cxd5 {[%emt 0:08:08]} 10. Bf4 {[%emt 0:02:55]} Bb7 {[%emt 0:07:03]} 11. Nb5 {[%emt 0:03:43]} Rc8 {[%emt 0:03:30]} 12. Bc7 {[%emt 0:01:17]} Qe8 {[%emt 0:11:21]} 13. Nxa7 {[%emt 0:00:19]} Ra8 {[%emt 0:01:11]} 14. Nb5 {[%emt 0:00:29]} Ba6 {[%emt 0:03:38]} 15. Nd6 {[%emt 0:00:50]} Bxd6 {[%emt 0:00:10]} 16. Bxd6 {[%emt 0:00:20]} Qc8 {[%emt 0:00:09]} 17. Rac1 {[%emt 0:03:04]} Qxc2 {[%emt 0:01:33]} 18. Rxc2 {[%emt 0:00:11]} Rfc8 {[%emt 0:00:42]} 19. Rfc1 {[%emt 0:00:51]} Rxc2 {[%emt 0:01:00]} 20. Rxc2 {[%emt 0:00:09]} Rc8 {[%emt 0:00:06]} 21. Rxc8+ {[%emt 0:02:47]} Bxc8 {[%emt 0:00:53]} 22. h3 {[%emt 0:06:31]} Ba6 {[%emt 0:01:01]} 23. Kf1 {[%emt 0:04:48]} Ne4 {[%emt 0:02:00]} 24. Bb4 {[%emt 0:03:02]} Nb8 {[%emt 0:01:16]} 25. Ke1 {[%emt 0:13:13]} Nc6 {[%emt 0:01:03]} 26. Ba3 {[%emt 0:00:24]} b5 {[%emt 0:01:01]} 27. Bc5 {[%emt 0:02:20]} h6 {[%emt 0:06:24]} 28. a3 {[%emt 0:01:42]} f6 {[%emt 0:01:34]} 29. Nd2 {[%emt 0:01:56]} Nxd2 {[%emt 0:01:13]} 30. Kxd2 {[%emt 0:00:06]} Kf7 {[%emt 0:00:22]} 31. e4 {[%emt 0:03:47]} dxe4 {[%emt 0:00:51]} 32. Bxe4 {[%emt 0:00:05]} Nd8 {[%emt 0:00:49]} 33. Bd3 {[%emt 0:00:56]} Nc6 {[%emt 0:01:50]} 34. a4 {[%emt 0:00:36]} Na5 {[%emt 0:01:06]} 35. Bxb5 {[%emt 0:00:48]} Bxb5 {[%emt 0:00:21]} 36. axb5 {[%emt 0:00:04]} Nb7 {[%emt 0:00:42]} 37. Ba3 {[%emt 0:00:46]} g6 {[%emt 0:00:09]} 38. Kc3 {[%emt 0:00:39]} Ke8 {[%emt 0:00:27]} 39. Kc4 {[%emt 0:01:16]} Kd7 {[%emt 0:00:07]} 40. d5 {[%emt 0:02:03]} exd5+ {[%emt 0:01:53]} 41. Kxd5 {[%emt 0:00:09]} Nd8 {[%emt 0:00:57]} 42. g4 {[%emt 0:01:41]} Nb7 {[%emt 0:01:05]} 43. Bf8 {[%emt 0:00:14]} h5 {[%emt 0:00:25]} 44. gxh5 {[%emt 0:00:06]} gxh5 {[%emt 0:00:07]} 45. Bb4 {[%emt 0:03:15]} Nd8 {[%emt 0:01:20]} 46. Bc3 {[%emt 0:00:24]} Ke7 {[%emt 0:00:56]} 47. b6 {[%emt 0:01:39]} Nb7 {[%emt 0:02:16]} 48. Kc6 {[%emt 0:00:16]} Nd8+ {[%emt 0:00:30]} 49. Kc7 {[%emt 0:00:15]} Ne6+ {[%emt 0:00:12]} 50. Kc8 {[%emt 0:00:39]} 1-0

[Event "FRA-ch Youth U12 2018"]
[Site "Agen"]
[Date "2018.04.19"]
[Round "6"]
[White "Schebacher, Solene"]
[Black "Cornileau, Juliette"]
[Result "0-1"]
[ECO "B24"]
[WhiteElo "1396"]
[BlackElo "1654"]
[Annotator "NA"]
[PlyCount "52"]
[EventDate "2018.??.??"]
[EventType "swiss"]
[EventCountry "FRA"]
[SourceTitle "playchess.com"]
[Source "ChessBase"]
[SourceQuality "1"]
[TimeControl "5400+30"]

1. e4 {[%emt 0:00:00]} c5 {[%emt 0:00:03]} 2. Nc3 {[%emt 0:00:21]} Nc6 {[%emt 0:00:06]} 3. g3 {[%emt 0:01:09]} g6 {[%emt 0:00:14]} 4. Bg2 {[%emt 0:00:50]} Bg7 {[%emt 0:00:18]} 5. d3 {[%emt 0:01:48]} Rb8 {[%emt 0:00:26]} 6. Be3 {[%emt 0:01:32]} d6 {[%emt 0:01:32]} 7. Qd2 {[%emt 0:02:05]} b5 {[%emt 0:00:17]} 8. Nge2 {[%emt 0:01:16]} b4 {[%emt 0:01:42]} 9. Nd1 {[%emt 0:01:10]} Nd4 {[%emt 0:01:59]} 10. Nc1 {[%emt 0:02:21]} Bg4 {[%emt 0:06:22]} 11. Bxd4 {[%emt 0:10:44]} cxd4 {[%emt 0:01:35]} 12. Ne2 {[%emt 0:01:08]} e5 {[%emt 0:03:32]} 13. O-O {[%emt 0:01:40]} Qd7 {[%emt 0:01:18]} 14. Re1 {[%emt 0:02:09]} Bh3 {[%emt 0:01:13]} 15. Bh1 {[%emt 0:00:20]} Nf6 {[%emt 0:06:25]} 16. c3 {[%emt 0:07:06]} bxc3 {[%emt 0:02:33]} 17. bxc3 {[%emt 0:00:20]} Nh5 {[%emt 0:06:17]} 18. cxd4 {[%emt 0:04:23]} exd4 {[%emt 0:00:29]} 19. Nb2 {[%emt 0:00:42]} O-O {[%emt 0:01:23]} 20. Nc4 {[%emt 0:01:36]} f5 {[%emt 0:06:30]} 21. exf5 {[%emt 0:07:03]} Qxf5 {[%emt 0:05:30]} 22. Nc1 {[%emt 0:01:24]} d5 {[%emt 0:04:56]} 23. Nb2 {[%emt 0:08:22]} Bh6 {[%emt 0:04:43]} 24. Qc2 {[%emt 0:10:47]} Rbc8 {[%emt 0:02:18]} 25. Qe2 {[%emt 0:00:28]} Rce8 {[%emt 0:00:51]} 26. Qxe8 {[%emt 0:08:50]} Qxf2# {[%emt 0:00:17]} 0-1